[Event "Serbian League 2024"]
[Site "Bajina Basta"]
[Date "2024.10.01"]
[Round "5.22"]
[White "Stojanovic, Dalibor"]
[Black "Nestorovic, Nikola"]
[Result "1-0"]
[Annotator "TA"]
[ECO "B30"]
[WhiteElo "2448"]
[BlackElo "2458"]
[PlyCount "61"]
[EventDate "2024.09.26"]
[EventType "team-tourn"]
[EventCountry "SRB"]
[SourceTitle "playchess.com"]
[Source "ChessBase"]
[SourceQuality "1"]
[TimeControl "40/5400+30:1800+30"]

{[%evp 16,61,11,0,33,5,7,8,0,0,57,56,76,57,81,35,134,73,117,43,85,83,88,51,31,14,114,112,105,120,102,116,106,121,113,29,27,0,0,0,0,0,390,384,392,130,29997,385]} 1. e4 {[%emt 0:00:02]} c5 {[%emt 0:00:13]} 2. Nf3 {[%emt 0:00:27]} Nc6 {[%emt 0:00:08]} 3. Bb5 {[%emt 0:01:06]} e6 {[%emt 0:00:07]} 4. O-O {[%emt 0:01:49]} Nge7 {[%emt 0:00:16]} 5. Nc3 {[%emt 0:01:54]} a6 {[%emt 0:04:19]} 6. Bxc6 {[%emt 0:00:29]} Nxc6 {[%emt 0:00:08]} 7. d4 {[%emt 0:01:56]} cxd4 {[%emt 0:00:28]} 8. Nxd4 {[%emt 0:00:09]} Qc7 {[%emt 0:01:06]} 9. Nxc6 {[%emt 0:05:25]} Qxc6 {[%emt 0:00:26]} 10. Re1 {[%emt 0:03:35][%cal Oc3d5]} Bb4 {[%emt 0:26:11][%cal Oe8g8]} 11. Qd4 {[%emt 0:16:10]} Bxc3 {[%emt 0:00:58] The position is equal.} 12. bxc3 {[%emt 0:00:04]} f6 {[%emt 0:00:21] Black is weak on the dark squares} (12... O-O $11) 13. Ba3 $14 {[%emt 0:04:54]} Kf7 {[%emt 0:01:46]} 14. e5 {[%emt 0:02:37]} b5 {[%emt 0:04:04]} 15. Rad1 {[%emt 0:17:03]} (15. Re3 $16 Bb7 16. Rg3) 15... h5 {[%emt 0:22:14] [#]} ({Black should try} 15... f5 $14) 16. Rd3 {[%emt 0:08:09]} (16. Re3 $142 $1 {Hoping for exf6.} d5 17. exf6 (17. exd6 Bd7 $14) 17... gxf6 18. Qf4) 16... a5 {[%emt 0:16:38]} 17. Red1 {[%emt 0:13:25]} ({Better is} 17. h3 $16) 17... Rh6 {[%emt 0:02:13]} 18. exf6 {[%emt 0:04:23]} gxf6 {[%emt 0:09:32]} 19. Rg3 {[%emt 0:01:20]} h4 {[%emt 0:00:55]} 20. Rg4 {[%emt 0:04:18][%cal Od4e3]} h3 {[%emt 0:00:16]} (20... d5 $1 $11 21. Qd2 (21. Rxh4 $2 e5 $19) 21... Rh5) 21. Qe3 $16 {[%emt 0:04:42][%csl LRh3,LRh6]} Rh4 {[%emt 0:01:11][%cal Ob5b4] [#] Threatens to win with ...b4!} 22. Rd6 $1 $40 {[%emt 0:03:54][%mdl 128] White attacks with force. Really sharp!} (22. Rxh4 $2 Qxg2#) (22. gxh3 Bb7 23. f3 Rxg4+ (23... Qxf3 24. Rxd7+ Ke8 25. Qxe6#) (23... Rxh3 $2 24. Rd6 $18) 24. hxg4 Qxf3 25. Rxd7+ Kg6 26. Qxf3 Bxf3 $17) 22... Qb7 {[%emt 0:04:57]} (22... Rxg4 $2 23. Rxc6 Rxg2+ 24. Kf1 dxc6 25. Qxh3 $18) 23. gxh3 {[%emt 0:00:04] White has more active pieces.} (23. Rxh4 $2 Qxg2#) 23... Rxg4+ {[%emt 0:02:02]} 24. hxg4 {[%emt 0:00:04] Qd3 is the strong threat.} b4 {[%emt 0:00:02]} 25. cxb4 {[%emt 0:01:17]} (25. Bc1 $16 {Strongly threatening Qd3.} Qc7 26. Rd1) 25... axb4 $11 {[%emt 0:00:04]} 26. Bb2 {[%emt 0:00:04]} Rxa2 {[%emt 0:00:45]} 27. Qd4 {[%emt 0:01:36]} Qf3 {[%emt 0:00:47]} 28. Qxb4 {[%emt 0:02:44][%cal Oh2h3]} Ra6 $2 {[%emt 0:01:51][%mdl 8192]} (28... Rxb2 $11 29. Qxb2 Qxg4+ 30. Kh1 (30. Kf1 Ba6+ 31. Rxa6 Qc4+ 32. Kg1 Qxa6 $11) 30... Qf3+ 31. Kg1 Qg4+ 32. Kh1 (32. Kf1 Ba6+ 33. Rxa6 Qc4+ 34. Kg1 Qxa6 $11) 32... Qf4) 29. Rd3 $18 {[%emt 0:00:21]} Qc6 {[%emt 0:00:24][%cal Oa6a4]} 30. Ba3 $2 {[%emt 0:00:53]} (30. Qf4 $18 {and the rest is easy.} e5 31. Qf5 (31. Bxe5 Qxc2 32. Qf5 Qc1+ 33. Kg2 Re6 $18)) 30... Ra4 $2 {[%emt 0:00:36][%mdl 8192]} (30... d6 $16) 31. Qf8+ {[%emt 0:00:07] Weighted Error Value: White=0.32/Black=0.70.  Loses game:     	---       	Black=2      Missed win:     	White=1     	---        Mistake:       	White=4     	Black=3      Inaccurate:     	White=3     	Black=2      OK:         	White=5     	Black=8      Best:        	White=2     	Black=2      Strong:       	White=1     	---} 1-0

[Event "Serbian League 2024"]
[Site "Bajina Basta"]
[Date "2024.10.01"]
[Round "5.23"]
[White "Todorovic, Goran M"]
[Black "Alimpic, Aleksa"]
[Result "1-0"]
[Annotator "RC"]
[ECO "B12"]
[WhiteElo "2289"]
[BlackElo "2253"]
[PlyCount "101"]
[EventDate "2024.09.26"]
[EventType "team-tourn"]
[EventCountry "SRB"]
[SourceTitle "playchess.com"]
[Source "ChessBase"]
[SourceQuality "1"]
[TimeControl "40/5400+30:1800+30"]

1. e4 {[%emt 0:00:20]} c6 {[%emt 0:00:12]} 2. d4 {[%emt 0:00:09]} d5 {[%emt 0:00:05]} 3. e5 {[%emt 0:00:17]} Bf5 {[%emt 0:00:06]} 4. c4 {[%emt 0:01:30]} e6 {[%emt 0:00:05]} 5. Nc3 {[%emt 0:00:51]} Bb4 {[%emt 0:00:04]} 6. cxd5 {[%emt 0:01:00]} cxd5 {[%emt 0:00:09]} 7. h4 {[%emt 0:03:08]} h6 {[%emt 0:00:21]} 8. g4 {[%emt 0:03:43]} Bh7 {[%emt 0:00:10]} 9. Bd3 {[%emt 0:00:54]} Bxc3+ {[%emt 0:00:11]} 10. bxc3 {[%emt 0:00:07]} Bxd3 {[%emt 0:00:07]} 11. Qxd3 {[%emt 0:00:05]} Ne7 {[%emt 0:07:10]} 12. h5 {[%emt 0:03:46]} Nbc6 {[%emt 0:00:14]} 13. Ne2 {[%emt 0:04:51]} Qd7 {[%emt 0:02:46]} 14. f4 {[%emt 0:07:03]} f6 {[%emt 0:09:44]} 15. Ng3 {[%emt 0:07:17]} fxe5 {[%emt 0:11:01]} 16. dxe5 {[%emt 0:02:02]} Na5 {[%emt 0:16:04]} 17. Be3 {[%emt 0:00:28]} Nc4 {[%emt 0:01:58]} 18. Bd4 {[%emt 0:01:16]} Nc6 {[%emt 0:01:49]} 19. O-O {[%emt 0:24:40]} O-O-O {[%emt 0:00:34]} 20. Rae1 {[%emt 0:01:28]} Qc7 {[%emt 0:07:47]} 21. Re2 {[%emt 0:01:16]} Rhf8 {[%emt 0:01:26]} 22. Kg2 {[%emt 0:01:44]} Kb8 {[%emt 0:01:59]} 23. Ref2 {[%emt 0:04:31]} Rf7 {[%emt 0:02:29]} 24. Rf3 {[%emt 0:05:10]} Rdf8 {[%emt 0:02:33]} 25. R1f2 {[%emt 0:00:14]} Qd7 {[%emt 0:05:05]} 26. Nf1 {[%emt 0:00:30]} b6 {[%emt 0:02:10]} 27. Ne3 {[%emt 0:01:56]} Nxe3+ {[%emt 0:00:47]} 28. Qxe3 {[%emt 0:00:15]} Nd8 {[%emt 0:10:55]} 29. Qd3 {[%emt 0:01:54]} Qe7 {[%emt 0:00:25]} 30. Kh3 {[%emt 0:01:31]} Nc6 {[%emt 0:01:33]} 31. Qe3 {[%emt 0:01:00]} Re8 {[%emt 0:00:52]} 32. Qd3 {[%emt 0:02:21]} Rff8 {[%emt 0:02:26]} 33. Kg3 {[%emt 0:02:28]} Kb7 {[%emt 0:00:32]} 34. Rf1 {[%emt 0:01:46]} Qc7 {[%emt 0:01:20]} 35. Kh3 {[%emt 0:00:11]} Qe7 {[%emt 0:01:06]} 36. Qg6 {[%emt 0:02:38]} Qf7 {[%emt 0:01:42]} 37. f5 {[%emt 0:07:35]} exf5 {[%emt 0:07:30]} 38. Qxf7+ {[%emt 0:01:05]} Rxf7 {[%emt 0:00:05]} 39. gxf5 {[%emt 0:00:02]} Rfe7 {[%emt 0:03:10]} 40. e6 {[%emt 0:00:46]} Nxd4 {[%emt 0:00:30]} 41. cxd4 {[%emt 0:30:05]} Kc6 {[%emt 0:06:20]} 42. Rc1+ {[%emt 0:00:00]} Kb5 {[%emt 0:02:24]} 43. Rfc3 {[%emt 0:00:00]} Ka4 {[%emt 0:03:18]} 44. Kg4 {[%emt 0:00:00]} Rb7 {[%emt 0:02:26]} 45. Kf4 {[%emt 0:00:00]} a5 {[%emt 0:00:21]} 46. Ke5 {[%emt 0:00:00]} b5 {[%emt 0:00:22]} 47. Kxd5 {[%emt 0:00:00]} b4 {[%emt 0:00:17]} 48. Rc5 {[%emt 0:00:00]} Ra7 {[%emt 0:00:33]} 49. Rc7 {[%emt 0:00:00]} Rxc7 {[%emt 0:01:59]} 50. Rxc7 {[%emt 0:00:00]} Ka3 {[%emt 0:00:04]} 51. Rxg7 {[%emt 0:00:00]} 1-0

[Event "Serbian League 2024"]
[Site "Bajina Basta"]
[Date "2024.10.01"]
[Round "5.24"]
[White "Popovic, Milan S"]
[Black "Arsovic, Goran"]
[Result "1/2-1/2"]
[Annotator "RC"]
[ECO "B53"]
[WhiteElo "2367"]
[BlackElo "2356"]
[PlyCount "35"]
[EventDate "2024.09.26"]
[EventType "team-tourn"]
[EventCountry "SRB"]
[SourceTitle "playchess.com"]
[Source "ChessBase"]
[SourceQuality "1"]
[TimeControl "40/5400+30:1800+30"]

1. e4 {[%emt 0:00:04]} c5 {[%emt 0:00:24]} 2. Nf3 {[%emt 0:00:08]} d6 {[%emt 0:00:17]} 3. Nc3 {[%emt 0:00:17]} Nf6 {[%emt 0:00:43]} 4. d4 {[%emt 0:00:11]} cxd4 {[%emt 0:00:14]} 5. Qxd4 {[%emt 0:00:17]} Nc6 {[%emt 0:00:23]} 6. Bb5 {[%emt 0:00:05]} Bd7 {[%emt 0:00:15]} 7. Qd3 {[%emt 0:01:17]} g6 {[%emt 0:09:06]} 8. Bg5 {[%emt 0:00:20]} Bg7 {[%emt 0:00:06]} 9. O-O-O {[%emt 0:00:09]} h6 {[%emt 0:02:56]} 10. Bxf6 {[%emt 0:19:14]} Bxf6 {[%emt 0:00:20]} 11. e5 {[%emt 0:03:24]} Nxe5 {[%emt 0:28:19]} 12. Nxe5 {[%emt 0:00:16]} Bxe5 {[%emt 0:02:45]} 13. Rhe1 {[%emt 0:01:28]} Bxc3 {[%emt 0:01:18]} 14. Qxc3 {[%emt 0:00:30]} O-O {[%emt 0:00:08]} 15. Bxd7 {[%emt 0:01:16]} Qxd7 {[%emt 0:00:07]} 16. Qe3 {[%emt 0:01:51]} Rac8 {[%emt 0:08:04]} 17. Qxh6 {[%emt 0:07:33]} Rc5 {[%emt 0:17:30]} 18. Qe3 {[%emt 0:23:33]} 1/2-1/2

[Event "Serbian League 2024"]
[Site "Bajina Basta"]
[Date "2024.10.01"]
[Round "5.25"]
[White "Visakh N R"]
[Black "Ivic, Velimir"]
[Result "0-1"]
[Annotator "TA"]
[ECO "B51"]
[WhiteElo "2504"]
[BlackElo "2599"]
[PlyCount "70"]
[EventDate "2024.09.26"]
[EventType "team-tourn"]
[EventCountry "SRB"]
[SourceTitle "playchess.com"]
[Source "ChessBase"]
[SourceQuality "1"]
[TimeControl "40/5400+30:1800+30"]

{[%evp 9,70,2,26,29,22,23,26,25,20,18,37,32,35,0,0,-35,-40,-43,0,0,0,0,0,-12,0,0,0,-13,11,0,-3,-55,-41,-47,-48,-36,-47,-39,-39,-85,-76,-73,-81,-99,-92,-81,-36,-20,0,-8,-6,-133,-152,-485,-473,-477,-472,-497,-487,-490,-485,-609,-620]} 1. e4 {[%emt 0:00:09]} c5 {[%emt 0:01:03]} 2. Nf3 {[%emt 0:00:10]} d6 {[%emt 0:01:04]} 3. Bb5+ {[%emt 0:00:06]} Nd7 {[%emt 0:00:38]} 4. c4 {[%emt 0:00:07]} e5 {[%emt 0:06:10]} 5. Nc3 {[%emt 0:01:41]} Ngf6 {[%emt 0:00:35]} 6. a3 {[%emt 0:00:43]} Be7 {[%emt 0:03:44]} 7. d3 {[%emt 0:00:07]} O-O {[%emt 0:00:25]} 8. Ba4 {[%emt 0:00:05] White has an edge.} Nb6 {[%emt 0:04:26]} 9. Bc2 {[%emt 0:00:39]} Be6 {[%emt 0:00:33]} 10. h3 {[%emt 0:09:33]} Nfd7 {[%emt 0:05:04]} 11. g4 {[%emt 0:16:21]} Nb8 {[%emt 0:03:27]} 12. Ne2 {[%emt 0:06:38]} Nc6 {[%emt 0:00:39]} 13. Ng3 {[%emt 0:00:05]} Nd4 {[%emt 0:04:58]} 14. Nxd4 {[%emt 0:00:21]} cxd4 {[%emt 0:00:05]} 15. O-O {[%emt 0:05:10]} Nd7 {[%emt 0:08:45]} 16. Kg2 {[%emt 0:14:12] [#]} b5 $1 {[%emt 0:10:48]} 17. cxb5 {[%emt 0:01:03]} d5 {[%emt 0:00:24]} 18. b4 {[%emt 0:07:14]} Qb6 {[%emt 0:05:01]} 19. Bb3 {[%emt 0:02:27]} dxe4 {[%emt 0:12:16]} 20. dxe4 {[%emt 0:08:54]} (20. Bxe6 $11 Qxe6 21. Nxe4) 20... Rac8 {[%emt 0:05:26]} 21. Bd2 {[%emt 0:07:03]} Qxb5 {[%emt 0:02:02]} (21... Bxb3 {feels hotter.} 22. Qxb3 Qxb5 23. Nf5 Rfe8) 22. Bxe6 {[%emt 0:02:00]} fxe6 {[%emt 0:00:02]} 23. Qb3 $1 {[%emt 0:00:06]} Qc4 {[%emt 0:01:01]} 24. Qa4 {[%emt 0:02:07]} (24. Qxc4 $15 Rxc4 25. Rfc1) 24... Rcd8 $17 {[%emt 0:16:24]} 25. Qd1 {[%emt 0:03:00]} Nb6 {[%emt 0:01:16]} 26. Rc1 {[%emt 0:01:44] [#]} Qd3 {[%emt 0:01:32][%cal Oe7h4] Black has more active pieces.} 27. Qe2 {[%emt 0:03:41]} Qxe2 {[%emt 0:00:44]} (27... Qb3 {looks sharper.} 28. Rb1 Qxa3 29. Ra1 Qb3) 28. Nxe2 {[%emt 0:00:05]} d3 $36 {[%emt 0:03:21][%mdl 2048] Black fights for an advantage.} 29. Ng1 {[%emt 0:04:34]} Rd4 {[%emt 0:00:35]} 30. Be3 {[%emt 0:00:27]} (30. Rc3 $11) 30... Rxe4 {[%emt 0:00:35]} 31. Rfd1 $2 {[%emt 0:00:03] [#] White does not recover from this.} (31. Nf3 $17 Nd5 32. Rce1) 31... Rxe3 $1 $19 {[%emt 0:00:37][%mdl 512] Black is clearly winning.} 32. fxe3 {[%emt 0:00:18]} e4 {[%emt 0:00:08] White must now prevent ...Nd5.} 33. Rf1 {[%emt 0:05:35]} Rd8 {[%emt 0:00:12]} 34. Rf4 {[%emt 0:00:07]} d2 {[%emt 0:00:33]} 35. Rd1 {[%emt 0:00:02]} Nd5 {[%emt 0:00:18][%csl LRe3,LRf4] Weighted Error Value: White=0.34/Black=0.08 (flawless) .  Loses game:     	White=1     	---        Mistake:       	White=3     	---        Inaccurate:     	White=2     	Black=2      OK:         	White=8     	Black=14     Best:        	White=1     	Black=3      Strong:       	White=1     	---        Brilliant:      	---       	Black=1} 0-1

[Event "Serbian League 2024"]
[Site "Bajina Basta"]
[Date "2024.10.01"]
[Round "5.26"]
[White "Djukic, Nikola"]
[Black "Vignesh N R"]
[Result "1/2-1/2"]
[Annotator "TA"]
[ECO "C80"]
[WhiteElo "2515"]
[BlackElo "2511"]
[PlyCount "113"]
[EventDate "2024.09.26"]
[EventType "team-tourn"]
[EventCountry "SRB"]
[SourceTitle "playchess.com"]
[Source "ChessBase"]
[SourceQuality "1"]
[TimeControl "40/5400+30:1800+30"]

{[%evp 24,113,31,22,29,37,30,22,45,39,77,100,92,78,86,20,27,27,25,18,16,27,84,99,93,92,95,91,89,89,89,81,81,81,93,81,100,100,100,100,100,100,100,100,100,100,100,100,123,123,123,123,123,123,123,123,123,123,123,123,123,123,123,123,123,123,123,123,123,123,123,122,122,122,122,122,123,122,122,33,42,42,122,122,122,122,122,116,122,122,122,122]} 1. e4 {[%emt 0:03:51]} e5 {[%emt 0:00:22]} 2. Nf3 {[%emt 0:00:06]} Nc6 {[%emt 0:00:10]} 3. Bb5 {[%emt 0:00:05][%cal Bf1b5,Bb5a4,Ba4b3][%mdl 32]} a6 {[%emt 0:00:26]} 4. Ba4 {[%emt 0:00:06]} Nf6 {[%emt 0:00:05][%cal Bg8f6,Bf6e4,Be4c5,Bc5e6,Be6d4][%mdl 32]} 5. O-O {[%emt 0:00:05]} Nxe4 {[%emt 0:01:18]} 6. d4 {[%emt 0:00:08]} b5 {[%emt 0:00:05]} 7. Bb3 {[%emt 0:00:04]} d5 {[%emt 0:00:04]} 8. dxe5 {[%emt 0:00:04]} Be6 {[%emt 0:00:05]} 9. Nbd2 {[%emt 0:00:06][%cal Bb1d2,Bd2e4,Be4c3][%mdl 32]} Nc5 {[%emt 0:01:33]} 10. c3 {[%emt 0:00:08]} d4 {[%emt 0:06:46]} 11. Bxe6 {[%emt 0:00:15]} Nxe6 {[%emt 0:00:03]} 12. cxd4 {[%emt 0:00:15]} Ncxd4 {[%emt 0:00:16]} 13. Ne4 {[%emt 0:00:06]} Qd5 {[%emt 0:06:45]} 14. Nxd4 {[%emt 0:02:49]} Nxd4 {[%emt 0:01:59]} 15. Nc3 {[%emt 0:01:50]} Qd7 {[%emt 0:00:37] The position is equal.} 16. Be3 {[%emt 0:00:07]} c5 {[%emt 0:02:53]} 17. a4 {[%emt 0:12:29] aiming for axb5.} Rd8 {[%emt 0:08:44]} 18. axb5 {[%emt 0:00:55]} axb5 {[%emt 0:00:03] [#]} 19. Bxd4 {[%emt 0:05:50]} (19. Ne4 $1 $16) 19... cxd4 $11 {[%emt 0:00:06]} 20. Ne4 {[%emt 0:00:07] Re1 would now be deadly.} Be7 {[%emt 0:00:48]} 21. Qd3 {[%emt 0:10:49]} O-O {[%emt 0:00:37]} 22. Rfd1 {[%emt 0:06:52]} f6 {[%emt 0:09:36]} (22... Qe6 $11) 23. exf6 $16 {[%emt 0:08:46]} Bxf6 {[%emt 0:00:12]} 24. Ra5 {[%emt 0:09:41] White is much more active.} b4 {[%emt 0:00:09]} 25. Qc4+ {[%emt 0:05:54]} Kh8 {[%emt 0:01:23]} 26. Nxf6 {[%emt 0:01:24]} ({But not} 26. Qxb4 d3 $15) 26... gxf6 {[%emt 0:03:07]} 27. Qxb4 {[%emt 0:00:52]} d3 {[%emt 0:00:57]} 28. Qf4 {[%emt 0:07:16]} d2 {[%emt 0:06:58]} 29. g3 {[%emt 0:00:38]} Qd3 {[%emt 0:02:53]} 30. Kg2 {[%emt 0:09:09]} Qc2 {[%emt 0:06:34]} 31. Qg4 {[%emt 0:07:03]} Rf7 {[%emt 0:06:02][%cal Bf8f7,Bf7b7,Bb7b4][%mdl 32] Dodges Ra7} 32. b4 {[%emt 0:00:40]} Qc6+ {[%emt 0:00:47]} 33. Qf3 {[%emt 0:00:17]} Qxf3+ {[%emt 0:01:45]} 34. Kxf3 {[%emt 0:00:06][%mdl 4096] Endgame. KRR-KRR} Rb7 {[%emt 0:00:03]} 35. Ra2 {[%emt 0:01:30]} Rxb4 {[%emt 0:00:13]} 36. Raxd2 {[%emt 0:00:05]} (36. Rdxd2 Rxd2 37. Rxd2 Rb5) 36... Rxd2 {[%emt 0:00:02]} 37. Rxd2 {[%emt 0:00:06] KR-KR} Kg7 {[%emt 0:00:02]} 38. Rd5 {[%emt 0:00:54]} Kg6 {[%emt 0:00:19]} 39. g4 {[%emt 0:00:38]} Rb3+ {[%emt 0:00:27]} 40. Kg2 {[%emt 0:00:09]} Rb4 {[%emt 0:04:40]} 41. f3 {[%emt 0:30:22]} h6 {[%emt 0:30:15]} 42. h4 {[%emt 0:00:26][%cal Bh2h4,Bh4h5][%mdl 32]} Rb7 {[%emt 0:00:44]} 43. Kg3 {[%emt 0:00:23]} Ra7 {[%emt 0:00:06]} 44. Rb5 {[%emt 0:00:21]} Rc7 {[%emt 0:00:06]} 45. h5+ {[%emt 0:01:29]} Kf7 {[%emt 0:00:38]} 46. Kf4 {[%emt 0:00:06]} Ra7 {[%emt 0:00:51]} 47. Ke4 {[%emt 0:03:03]} Re7+ {[%emt 0:00:52]} 48. Kf5 {[%emt 0:01:48]} Ra7 {[%emt 0:00:02]} 49. Rc5 {[%emt 0:00:11]} Rb7 {[%emt 0:00:02]} 50. Ke4 {[%emt 0:02:23]} Re7+ {[%emt 0:00:02]} 51. Kd5 {[%emt 0:00:55]} (51. Kf4 $16) 51... Rd7+ {[%emt 0:00:37]} 52. Kc4 {[%emt 0:02:07]} Ra7 {[%emt 0:00:21]} (52... Ke6 $14) 53. Kd4 {[%emt 0:00:00] White is better.} Rb7 {[%emt 0:00:00]} 54. f4 {[%emt 0:00:00]} Ra7 {[%emt 0:00:00]} 55. Rc6 {[%emt 0:00:00]} Ra4+ {[%emt 0:00:00]} 56. Rc4 {[%emt 0:00:00]} Ra7 {[%emt 0:00:00]} 57. Ke4 {[%emt 0:03:11] Weighted Error Value: White=0.06 (flawless) /Black=0.07 (flawless) .  Mistake:       	White=2     	Black=2      Inaccurate:     	---       	Black=1      OK:         	White=23    	Black=9      Best:        	White=6     	Black=2} 1/2-1/2

[Event "Serbian League 2024"]
[Site "Bajina Basta"]
[Date "2024.10.01"]
[Round "5.27"]
[White "Milanovic, Danilo"]
[Black "Nenezic, Marko"]
[Result "0-1"]
[Annotator "TA"]
[ECO "A85"]
[WhiteElo "2442"]
[BlackElo "2492"]
[PlyCount "80"]
[EventDate "2024.09.26"]
[EventType "team-tourn"]
[EventCountry "SRB"]
[SourceTitle "playchess.com"]
[Source "ChessBase"]
[SourceQuality "1"]
[TimeControl "40/5400+30:1800+30"]

{[%evp 9,80,31,47,37,32,37,33,32,33,28,60,53,70,62,79,44,84,10,17,0,41,33,33,35,31,0,0,-14,0,0,0,-31,0,-63,0,-165,-156,-181,-172,-181,-180,-237,-253,-299,-304,-321,-318,-608,-562,-967,-1020,-922,-993,-990,-1054,-1066,-1037,-1083,-1102,-1098,-992,-1095,-1069,-1325,-1296,-1274,-1308,-1308,-1284,-1284,-1213,-1214,-1220]} 1. d4 {[%emt 0:01:29]} f5 {[%emt 0:00:40]} 2. c4 {[%emt 0:07:40]} Nf6 {[%emt 0:00:20]} 3. Nc3 {[%emt 0:00:05]} d6 {[%emt 0:00:29]} 4. Bg5 {[%emt 0:17:46]} Nbd7 {[%emt 0:01:25]} 5. e3 {[%emt 0:00:20]} g6 {[%emt 0:01:08]} 6. Bd3 {[%emt 0:09:11]} Bg7 {[%emt 0:01:55]} 7. Nge2 {[%emt 0:02:49]} e5 {[%emt 0:06:36]} 8. f3 {[%emt 0:08:11] White is slightly better.} O-O {[%emt 0:09:24]} 9. O-O {[%emt 0:00:21]} Kh8 {[%emt 0:02:37]} 10. Qe1 {[%emt 0:15:57]} c6 {[%emt 0:07:56]} 11. Qh4 {[%emt 0:00:32]} Qe8 {[%emt 0:00:12]} 12. g4 {[%emt 0:04:05]} Ng8 {[%emt 0:14:59]} 13. Rae1 {[%emt 0:05:32]} (13. gxf5 $16 gxf5 14. Kh1) 13... Ndf6 {[%emt 0:05:44]} 14. c5 {[%emt 0:06:26]} dxc5 {[%emt 0:06:55]} 15. dxe5 {[%emt 0:00:17]} Qxe5 {[%emt 0:00:22]} 16. Nf4 {[%emt 0:00:17]} Ne7 {[%emt 0:00:37]} 17. gxf5 {[%emt 0:08:41]} Bxf5 {[%emt 0:01:24]} 18. e4 {[%emt 0:00:21]} Bd7 {[%emt 0:01:19]} 19. Bb1 {[%emt 0:08:28]} c4 {[%emt 0:01:17] Inhibits Nd3.} 20. Kh1 {[%emt 0:00:11][%cal Oc3d5]} Rae8 {[%emt 0:03:25]} 21. Rg1 {[%emt 0:01:11]} (21. Ncd5 $11 Kg8 (21... cxd5 22. exd5 Qxb2 23. Re2 $16) 22. Ne3) 21... Nfg8 {[%emt 0:09:41]} ({Black should try} 21... Kg8 $15) 22. a4 $2 {[%emt 0:01:06] Black converts the advantage convincingly.} (22. Nce2 $1 $11 {and White has nothing to worry.}) 22... Rf7 $1 $19 {[%emt 0:03:48]} 23. Nce2 {[%emt 0:00:32]} Ref8 $1 {[%emt 0:01:11]} (23... Qxb2 24. Rd1 Qa3 25. Rxd7 Qxf3+ 26. Rg2 Qf1+ 27. Rg1 Qf3+ 28. Rg2 Qf1+ 29. Ng1 (29. Rg1 Qf3+ $11) 29... Qxb1 30. Bxe7 Rxf4 (30... Nxe7 $2 31. Rxe7 Rfxe7 32. Nxg6+ Kg8 33. Nxe7+ Kh8 34. Ng6+ Kg8 35. Ne5 $18) 31. Qxf4 Rxe7 32. Rxe7 Nxe7 33. Rd2 $11) 24. Rd1 {[%emt 0:00:08] [#]} Bc8 {[%emt 0:01:29]} 25. Ba2 {[%emt 0:00:20] [#]} (25. a5 $142 b5 (25... Qxa5 26. e5 $17) (25... Qxb2 $2 26. e5 $19) 26. Rg2) 25... b5 $1 {[%emt 0:00:37]} 26. b3 {[%emt 0:00:52]} Qb2 {[%emt 0:01:05][%csl LRa2,LRb3]} 27. Nc1 {[%emt 0:00:40]} Be5 {[%emt 0:01:34]} 28. Nfe2 {[%emt 0:00:22] [#]} (28. Nfd3 cxd3 29. Nxd3) 28... Rxf3 $1 {[%emt 0:08:43] Black is clearly winning.} 29. Bxe7 {[%emt 0:00:05]} (29. Rd2 Qa3) 29... Rh3 {[%emt 0:00:04]} ({Less strong is} 29... Nxe7 30. Qxe7 Rf2 (30... cxb3 31. Nd3 $16) 31. Rg2 $19) 30. Qxh3 {[%emt 0:00:33]} Bxh3 {[%emt 0:00:07]} 31. Bxf8 {[%emt 0:00:03]} Qc2 {[%emt 0:00:05][%csl LRa4,LRe4]} 32. Ng3 {[%emt 0:01:20] [#]} Bg2+ $1 {[%emt 0:00:08][%mdl 512]} 33. Rxg2 {[%emt 0:00:08]} Qxd1+ {[%emt 0:00:04]} 34. Rg1 {[%emt 0:00:06]} Qf3+ {[%emt 0:00:04]} 35. Rg2 {[%emt 0:00:24]} Qxf8 {[%emt 0:00:44]} 36. axb5 {[%emt 0:00:47]} Bxg3 {[%emt 0:04:21]} 37. Rxg3 {[%emt 0:00:01]} Qf1+ {[%emt 0:00:07]} 38. Rg1 {[%emt 0:00:03]} Qf3+ {[%emt 0:00:04]} 39. Rg2 {[%emt 0:00:03]} cxb5 {[%emt 0:00:12] White must now prevent ...Nf6.} 40. bxc4 {[%emt 0:00:24]} Nf6 {[%emt 0:00:25] Weighted Error Value: White=0.72/Black=0.12 (very precise) .  Loses game:     	White=1     	---        Mistake:       	White=4     	Black=1      Inaccurate:     	White=4     	Black=4      OK:         	White=10    	Black=10     Best:        	---       	Black=1      Strong:       	---       	Black=2} 0-1